[Event "33rd Croatian Junior League 2024"]
[Site "Novalja"]
[Date "2024.04.06"]
[Round "7.11"]
[White "Matosin, Jurica"]
[Black "Martic, Ivan"]
[Result "1/2-1/2"]
[ECO "B15"]
[WhiteElo "1928"]
[BlackElo "2300"]
[Annotator "RC"]
[PlyCount "77"]
[EventDate "2024.03.28"]
[EventType "team-tourn"]
[EventCountry "CRO"]
[SourceTitle "playchess.com"]
[Source "ChessBase"]
[SourceQuality "1"]
[TimeControl "5400+30"]

1. e4 {[%emt 0:00:05]} c6 {[%emt 0:01:25]} 2. Nf3 {[%emt 0:00:18]} d5 {[%emt 0:00:09]} 3. Nc3 {[%emt 0:00:25]} dxe4 {[%emt 0:00:33]} 4. Nxe4 {[%emt 0:00:17]} Nf6 {[%emt 0:00:05]} 5. Nxf6+ {[%emt 0:00:46]} exf6 {[%emt 0:00:05]} 6. d4 {[%emt 0:00:50]} Bf5 {[%emt 0:08:19]} 7. Be2 {[%emt 0:01:07]} Bd6 {[%emt 0:00:15]} 8. O-O {[%emt 0:02:51]} O-O {[%emt 0:00:23]} 9. c4 {[%emt 0:01:45]} Re8 {[%emt 0:08:26]} 10. Be3 {[%emt 0:02:42]} Nd7 {[%emt 0:01:16]} 11. c5 {[%emt 0:02:20]} Bc7 {[%emt 0:01:11]} 12. Qb3 {[%emt 0:07:47]} Rb8 {[%emt 0:15:49]} 13. Bc4 {[%emt 0:03:34]} Be6 {[%emt 0:01:47]} 14. Bxe6 {[%emt 0:07:01]} fxe6 {[%emt 0:01:56]} 15. Qc4 {[%emt 0:08:31]} Nf8 {[%emt 0:05:27]} 16. b4 {[%emt 0:03:10]} Qd5 {[%emt 0:00:56]} 17. Qxd5 {[%emt 0:00:44]} exd5 {[%emt 0:01:13]} 18. a4 {[%emt 0:00:36]} Ne6 {[%emt 0:04:02]} 19. b5 {[%emt 0:00:28]} Kf7 {[%emt 0:08:37]} 20. Rfb1 {[%emt 0:08:23]} a6 {[%emt 0:05:48]} 21. g3 {[%emt 0:01:49]} Ke7 {[%emt 0:08:03]} 22. b6 {[%emt 0:00:54]} Bd8 {[%emt 0:00:10]} 23. Re1 {[%emt 0:03:23]} Kf7 {[%emt 0:01:06]} 24. Bf4 {[%emt 0:01:43]} Nxf4 {[%emt 0:07:05]} 25. gxf4 {[%emt 0:00:45]} Be7 {[%emt 0:10:33]} 26. Re3 {[%emt 0:02:15]} Bf8 {[%emt 0:00:33]} 27. Rae1 {[%emt 0:00:35]} Re7 {[%emt 0:00:40]} 28. Nd2 {[%emt 0:00:41]} Rbe8 {[%emt 0:02:27]} 29. Nb3 {[%emt 0:00:22]} Rc8 {[%emt 0:00:14]} 30. Na5 {[%emt 0:00:42]} Rb8 {[%emt 0:00:01]} 31. f5 {[%emt 0:01:23]} g6 {[%emt 0:00:30]} 32. fxg6+ {[%emt 0:00:29]} hxg6 {[%emt 0:00:04]} 33. Rxe7+ {[%emt 0:00:28]} Bxe7 {[%emt 0:00:01]} 34. Re3 {[%emt 0:02:07]} Kf8 {[%emt 0:02:12]} 35. Kf1 {[%emt 0:01:50]} Kf7 {[%emt 0:00:25]} 36. Ke2 {[%emt 0:00:20]} Bf8 {[%emt 0:00:41]} 37. Rh3 {[%emt 0:01:11]} Kg7 {[%emt 0:00:13]} 38. f4 {[%emt 0:00:49]} f5 {[%emt 0:04:40]} 39. Re3 {[%emt 0:01:26]} 1/2-1/2

[Event "33rd Croatian Junior League 2024"]
[Site "Novalja"]
[Date "2024.04.06"]
[Round "7.12"]
[White "Dimac, Petar"]
[Black "Bozic, Niko"]
[Result "0-1"]
[ECO "B22"]
[WhiteElo "1623"]
[BlackElo "1832"]
[Annotator "NA RC"]
[PlyCount "116"]
[EventDate "2024.03.28"]
[EventType "team-tourn"]
[EventCountry "CRO"]
[SourceTitle "playchess.com"]
[Source "ChessBase"]
[SourceQuality "1"]
[TimeControl "5400+30"]

1. e4 {[%emt 0:01:25]} c5 {[%emt 0:00:14]} 2. c3 {[%emt 0:00:07]} d5 {[%emt 0:00:04]} 3. exd5 {[%emt 0:00:06]} Qxd5 {[%emt 0:00:03]} 4. d4 {[%emt 0:00:07]} cxd4 {[%emt 0:00:11]} 5. cxd4 {[%emt 0:00:04]} Nc6 {[%emt 0:00:05]} 6. Nf3 {[%emt 0:00:19]} e5 {[%emt 0:01:29]} 7. Nc3 {[%emt 0:01:52]} Bb4 {[%emt 0:00:14]} 8. dxe5 {[%emt 0:07:15]} Qxd1+ {[%emt 0:02:18]} 9. Kxd1 {[%emt 0:00:05]} Bg4 {[%emt 0:00:05]} 10. Be2 {[%emt 0:00:21]} O-O-O+ {[%emt 0:00:13]} 11. Bd2 {[%emt 0:02:36]} Nge7 {[%emt 0:00:36]} 12. Re1 {[%emt 0:02:35]} Ng6 {[%emt 0:00:48]} 13. Rc1 {[%emt 0:02:34]} Kb8 {[%emt 0:00:33]} 14. a3 {[%emt 0:01:29]} Ba5 {[%emt 0:04:36]} 15. h3 {[%emt 0:03:09]} Bxf3 {[%emt 0:03:17]} 16. Bxf3 {[%emt 0:00:28]} Ncxe5 {[%emt 0:04:39]} 17. Be2 {[%emt 0:02:16]} Nf4 {[%emt 0:01:45]} 18. Rg1 {[%emt 0:07:12]} Nfd3 {[%emt 0:00:58]} 19. Bxd3 {[%emt 0:00:56]} Nxd3 {[%emt 0:00:03]} 20. Rb1 {[%emt 0:00:36]} Nxf2+ {[%emt 0:07:51]} 21. Kc2 {[%emt 0:01:11]} Rhe8 {[%emt 0:02:39]} 22. Rbe1 {[%emt 1:04:47]} f6 {[%emt 0:06:22]} 23. Rgf1 {[%emt 0:00:00]} Bxc3 {[%emt 0:02:27]} 24. Rxe8 {[%emt 0:00:00]} Rxe8 {[%emt 0:00:03]} 25. Rxf2 {[%emt 0:00:00]} Be5 {[%emt 0:01:18]} 26. Re2 {[%emt 0:00:00]} Kc7 {[%emt 0:02:23]} 27. Bc3 {[%emt 0:00:00]} Kd6 {[%emt 0:00:14]} 28. Rd2+ {[%emt 0:00:00]} Ke6 {[%emt 0:00:24]} 29. Bxe5 {[%emt 0:00:00]} fxe5 {[%emt 0:00:04]} 30. Kd1 {[%emt 0:00:00]} Re7 {[%emt 0:01:11]} 31. Ke2 {[%emt 0:00:00]} Rd7 {[%emt 0:00:12]} 32. Rc2 {[%emt 0:00:00]} Kf5 {[%emt 0:00:26]} 33. Ke3 {[%emt 0:00:00]} h5 {[%emt 0:00:24]} 34. Rf2+ {[%emt 0:00:00]} Ke6 {[%emt 0:00:09]} 35. Rc2 {[%emt 0:00:00]} b6 {[%emt 0:01:41]} 36. Rc6+ {[%emt 0:00:00]} Kf5 {[%emt 0:03:40]} 37. Rc2 {[%emt 0:00:00]} g5 {[%emt 0:01:49]} 38. Rc4 {[%emt 0:00:00]} g4 {[%emt 0:00:35]} 39. hxg4+ {[%emt 0:00:00]} hxg4 {[%emt 0:00:02]} 40. g3 {[%emt 0:00:00]} Rd1 {[%emt 0:01:33]} 41. Rc3 {[%emt 0:00:00]} Rf1 {[%emt 0:04:58]} 42. Ke2 {[%emt 0:00:00]} Rh1 {[%emt 0:00:06]} 43. Rb3 {[%emt 0:00:00]} Rh2+ {[%emt 0:01:10]} 44. Ke1 {[%emt 0:00:00]} Rc2 {[%emt 0:01:46]} 45. Kf1 {[%emt 0:00:00]} Ke4 {[%emt 0:05:05]} 46. Rb4+ {[%emt 0:00:00]} Ke3 {[%emt 0:00:36]} 47. Rb3+ {[%emt 0:00:00]} Kd4 {[%emt 0:00:19]} 48. Ke1 {[%emt 0:00:00]} Rg2 {[%emt 0:02:48]} 49. Kf1 {[%emt 0:00:00]} Rd2 {[%emt 0:00:17]} 50. Ke1 {[%emt 0:00:00]} Rc2 {[%emt 0:06:01]} 51. Kf1 {[%emt 0:00:00]} e4 {[%emt 0:02:19]} 52. Rb4+ {[%emt 0:00:00]} Rc4 {[%emt 0:00:15]} 53. Rb3 {[%emt 0:00:00]} e3 {[%emt 0:00:20]} 54. Ke2 {[%emt 0:00:00]} Rc2+ {[%emt 0:00:09]} 55. Ke1 {[%emt 0:00:00]} Ke4 {[%emt 0:00:27]} 56. Kd1 {[%emt 0:00:00]} Rd2+ {[%emt 0:00:19]} 57. Ke1 {[%emt 0:00:00]} Kf3 {[%emt 0:00:16]} 58. Kf1 {[%emt 0:00:00]} Rd1# {[%emt 0:34:41]} 0-1

[Event "33rd Croatian Junior League 2024"]
[Site "Novalja"]
[Date "2024.04.07"]
[Round "8.1"]
[White "Gal, Andrej"]
[Black "Grgantov, Marin"]
[Result "1-0"]
[ECO "E04"]
[WhiteElo "2274"]
[BlackElo "2142"]
[Annotator "RC"]
[PlyCount "135"]
[EventDate "2024.03.28"]
[EventType "team-tourn"]
[EventCountry "CRO"]
[SourceTitle "playchess.com"]
[Source "ChessBase"]
[SourceQuality "1"]
[TimeControl "5400+30"]

1. d4 {[%emt 0:00:03]} Nf6 {[%emt 0:00:11]} 2. c4 {[%emt 0:00:04]} e6 {[%emt 0:00:06]} 3. Nf3 {[%emt 0:00:04]} d5 {[%emt 0:00:07]} 4. g3 {[%emt 0:00:10]} dxc4 {[%emt 0:00:20]} 5. Bg2 {[%emt 0:00:05]} Nc6 {[%emt 0:00:24]} 6. Qa4 {[%emt 0:08:59]} Nd7 {[%emt 0:02:50]} 7. Qxc4 {[%emt 0:12:24]} Nb6 {[%emt 0:00:17]} 8. Qd3 {[%emt 0:02:00]} e5 {[%emt 0:00:34]} 9. e3 {[%emt 0:11:42]} Be6 {[%emt 0:10:05]} 10. Nbd2 {[%emt 0:08:32]} Be7 {[%emt 0:11:31]} 11. O-O {[%emt 0:01:41]} Bf6 {[%emt 0:04:30]} 12. Rd1 {[%emt 0:05:40]} exd4 {[%emt 0:08:01]} 13. Nxd4 {[%emt 0:01:37]} Nxd4 {[%emt 0:01:30]} 14. exd4 {[%emt 0:00:10]} c6 {[%emt 0:08:54]} 15. Ne4 {[%emt 0:01:44]} O-O {[%emt 0:00:38]} 16. Nc5 {[%emt 0:04:13]} Qc8 {[%emt 0:01:17]} 17. Nxe6 {[%emt 0:00:12]} Qxe6 {[%emt 0:00:20]} 18. Be3 {[%emt 0:04:14]} Rad8 {[%emt 0:05:13]} 19. Qc2 {[%emt 0:03:28]} Rfe8 {[%emt 0:01:42]} 20. h4 {[%emt 0:02:35]} Nd5 {[%emt 0:06:26]} 21. Bg5 {[%emt 0:03:08]} Bxg5 {[%emt 0:01:27]} 22. hxg5 {[%emt 0:00:07]} Nb6 {[%emt 0:04:40]} 23. Qc5 {[%emt 0:02:31]} Qe7 {[%emt 0:10:11]} 24. Qa5 {[%emt 0:02:56]} Nd5 {[%emt 0:06:32]} 25. Qd2 {[%emt 0:03:53]} g6 {[%emt 0:01:20]} 26. Bf3 {[%emt 0:01:51]} Nc7 {[%emt 0:01:04]} 27. Re1 {[%emt 0:02:09]} Qd6 {[%emt 0:00:33]} 28. Qa5 {[%emt 0:00:24]} Ne6 {[%emt 0:02:21]} 29. Qxa7 {[%emt 0:02:35]} Nxd4 {[%emt 0:00:22]} 30. Bg2 {[%emt 0:01:13]} Qb4 {[%emt 0:00:31]} 31. Rxe8+ {[%emt 0:01:54]} Rxe8 {[%emt 0:12:03]} 32. b3 {[%emt 0:03:16]} Re1+ {[%emt 0:00:00]} 33. Rxe1 {[%emt 0:00:06]} Qxe1+ {[%emt 0:00:00]} 34. Kh2 {[%emt 0:02:28]} Qxf2 {[%emt 0:00:00]} 35. Qb8+ {[%emt 0:00:07]} Kg7 {[%emt 0:00:00]} 36. Qe5+ {[%emt 0:00:01]} Kf8 {[%emt 0:00:00]} 37. Qb8+ {[%emt 0:00:25]} Ke7 {[%emt 0:00:00]} 38. Qxb7+ {[%emt 0:00:05]} Kd6 {[%emt 0:00:00]} 39. Qb8+ {[%emt 0:00:27]} Kc5 {[%emt 0:00:00]} 40. Qf8+ {[%emt 0:02:02]} Kb6 {[%emt 0:00:00]} 41. Qd8+ {[%emt 0:00:56]} Kc5 {[%emt 0:00:38]} 42. Qe7+ {[%emt 0:01:08]} Kb6 {[%emt 0:00:12]} 43. Qe4 {[%emt 0:00:10]} Kc5 {[%emt 0:01:18]} 44. a3 {[%emt 0:01:19]} Kb6 {[%emt 0:02:27]} 45. a4 {[%emt 0:02:43]} Kc5 {[%emt 0:00:35]} 46. a5 {[%emt 0:01:13]} Kb5 {[%emt 0:00:30]} 47. b4 {[%emt 0:00:14]} Ka6 {[%emt 0:01:02]} 48. Qd3+ {[%emt 0:02:14]} Ka7 {[%emt 0:00:16]} 49. Qc3 {[%emt 0:00:59]} Kb8 {[%emt 0:01:04]} 50. Kh1 {[%emt 0:01:59]} Ne2 {[%emt 0:00:33]} 51. Qe5+ {[%emt 0:00:12]} Kb7 {[%emt 0:00:29]} 52. Kh2 {[%emt 0:01:15]} Qg1+ {[%emt 0:00:46]} 53. Kh3 {[%emt 0:00:02]} Qf2 {[%emt 0:00:21]} 54. Kh2 {[%emt 0:01:01]} Qg1+ {[%emt 0:00:01]} 55. Kh3 {[%emt 0:00:00]} Qf2 {[%emt 0:00:01]} 56. Qb5+ {[%emt 0:01:15]} Ka7 {[%emt 0:00:52]} 57. Qd3 {[%emt 0:00:13]} Nd4 {[%emt 0:00:33]} 58. Qc4 {[%emt 0:00:50]} Qf5+ {[%emt 0:00:57]} 59. Kh2 {[%emt 0:00:06]} Nf3+ {[%emt 0:00:11]} 60. Bxf3 {[%emt 0:00:40]} Qxf3 {[%emt 0:00:01]} 61. Qd4+ {[%emt 0:00:20]} Kb8 {[%emt 0:00:36]} 62. Qf4+ {[%emt 0:00:37]} Qxf4 {[%emt 0:00:06]} 63. gxf4 {[%emt 0:00:01]} Kb7 {[%emt 0:00:37]} 64. Kg3 {[%emt 0:00:04]} Ka6 {[%emt 0:00:51]} 65. Kf3 {[%emt 0:00:04]} Kb5 {[%emt 0:01:14]} 66. Ke4 {[%emt 0:00:03]} c5 {[%emt 0:00:03]} 67. bxc5 {[%emt 0:00:03]} Kxc5 {[%emt 0:00:05]} 68. Ke5 {[%emt 0:03:34]} 1-0

[Event "33rd Croatian Junior League 2024"]
[Site "Novalja"]
[Date "2024.04.07"]
[Round "8.2"]
[White "Begic, Domagoj"]
[Black "Franc, Borna"]
[Result "0-1"]
[ECO "A00"]
[WhiteElo "2069"]
[BlackElo "2221"]
[Annotator "RC"]
[PlyCount "58"]
[EventDate "2024.03.28"]
[EventType "team-tourn"]
[EventCountry "CRO"]
[SourceTitle "playchess.com"]
[Source "ChessBase"]
[SourceQuality "1"]
[TimeControl "5400+30"]

1. g3 {[%emt 0:01:35]} e5 {[%emt 0:00:28]} 2. Bg2 {[%emt 0:03:48]} Nc6 {[%emt 0:00:23]} 3. d3 {[%emt 0:00:59]} h5 {[%emt 0:00:26]} 4. h3 {[%emt 0:05:52]} d5 {[%emt 0:00:09]} 5. Nd2 {[%emt 0:00:17]} Be6 {[%emt 0:01:13]} 6. c3 {[%emt 0:03:11]} Qd7 {[%emt 0:00:39]} 7. b4 {[%emt 0:02:02]} a5 {[%emt 0:03:46]} 8. b5 {[%emt 0:00:29]} Nce7 {[%emt 0:00:11]} 9. a4 {[%emt 0:00:04]} Ng6 {[%emt 0:00:10]} 10. h4 {[%emt 0:00:32]} c6 {[%emt 0:01:13]} 11. Rb1 {[%emt 0:01:35]} Nf6 {[%emt 0:00:04]} 12. Ngf3 {[%emt 0:00:34]} e4 {[%emt 0:06:37]} 13. Nd4 {[%emt 0:06:05]} e3 {[%emt 0:01:47]} 14. fxe3 {[%emt 0:00:27]} Bd6 {[%emt 0:00:13]} 15. Nf1 {[%emt 0:00:21]} c5 {[%emt 0:00:06]} 16. Nxe6 {[%emt 0:02:13]} fxe6 {[%emt 0:01:26]} 17. Kd2 {[%emt 0:02:30]} Ng4 {[%emt 0:01:22]} 18. Rg1 {[%emt 0:00:07]} O-O {[%emt 0:02:49]} 19. Kc2 {[%emt 0:00:09]} Rf2 {[%emt 0:05:36]} 20. Bd2 {[%emt 0:02:49]} Raf8 {[%emt 0:00:06]} 21. Kb2 {[%emt 0:04:40]} N6e5 {[%emt 0:05:41]} 22. Ka1 {[%emt 0:02:42]} Be7 {[%emt 0:00:16]} 23. Rc1 {[%emt 0:00:54]} Qd6 {[%emt 0:00:24]} 24. Kb1 {[%emt 0:00:31]} Nd7 {[%emt 0:00:52]} 25. c4 {[%emt 0:00:39]} dxc4 {[%emt 0:06:26]} 26. Rxc4 {[%emt 0:03:12]} Nde5 {[%emt 0:00:05]} 27. Rc1 {[%emt 0:02:51]} c4 {[%emt 0:21:03]} 28. d4 {[%emt 0:05:32]} Nd7 {[%emt 0:00:06]} 29. Rxc4 {[%emt 0:12:52]} Rxg2 {[%emt 0:00:29]} 0-1

[Event "33rd Croatian Junior League 2024"]
[Site "Novalja"]
[Date "2024.04.07"]
[Round "8.3"]
[White "Marfat, Ivan"]
[Black "Poljak, Stipe"]
[Result "1-0"]
[ECO "B20"]
[WhiteElo "1903"]
[BlackElo "1979"]
[Annotator "NA RC"]
[PlyCount "93"]
[EventDate "2024.03.28"]
[EventType "team-tourn"]
[EventCountry "CRO"]
[SourceTitle "playchess.com"]
[Source "ChessBase"]
[SourceQuality "1"]
[TimeControl "5400+30"]

1. e4 {[%emt 0:00:05]} c5 {[%emt 0:00:15]} 2. a3 {[%emt 0:00:13]} g6 {[%emt 0:05:08]} 3. Nc3 {[%emt 0:00:07]} Bg7 {[%emt 0:00:24]} 4. Bc4 {[%emt 0:00:05]} d6 {[%emt 0:01:54]} 5. d3 {[%emt 0:00:23]} Nc6 {[%emt 0:03:32]} 6. f4 {[%emt 0:00:13]} e6 {[%emt 0:03:46]} 7. Nf3 {[%emt 0:00:07]} Nge7 {[%emt 0:00:09]} 8. Ba2 {[%emt 0:00:03]} a6 {[%emt 0:03:05]} 9. O-O {[%emt 0:00:30]} Nd4 {[%emt 0:03:03]} 10. Kh1 {[%emt 0:07:44]} O-O {[%emt 0:03:09]} 11. Nxd4 {[%emt 0:13:14]} cxd4 {[%emt 0:00:23]} 12. Ne2 {[%emt 0:00:03]} d5 {[%emt 0:10:49]} 13. e5 {[%emt 0:02:26]} f6 {[%emt 0:01:46]} ({Black should try} 13... Qb6 $11) 14. Nxd4 {[%emt 0:01:54]} fxe5 {[%emt 0:00:11]} 15. fxe5 $14 {[%emt 0:00:03]} Bxe5 {[%emt 0:00:30]} 16. Nf3 {[%emt 0:00:43]} Bg7 {[%emt 0:01:50]} 17. Qe2 {[%emt 0:02:39]} Qd6 {[%emt 0:02:50]} 18. d4 {[%emt 0:01:36]} Nc6 {[%emt 0:05:48]} 19. c3 {[%emt 0:01:19]} Bd7 {[%emt 0:08:56]} 20. g3 {[%emt 0:15:46]} Rae8 {[%emt 0:15:59]} 21. Bf4 {[%emt 0:00:15]} Qe7 {[%emt 0:00:20]} 22. Rae1 {[%emt 0:04:00]} Qd8 {[%emt 0:04:53]} 23. h4 {[%emt 0:05:28]} Ne7 {[%emt 0:08:38]} 24. Bb1 {[%emt 0:04:51]} Nf5 {[%emt 0:01:07]} 25. Ne5 {[%emt 0:03:23]} Bb5 {[%emt 0:02:10]} 26. Bd3 {[%emt 0:00:30]} Bxd3 {[%emt 0:00:46]} 27. Nxd3 {[%emt 0:00:21]} Nd6 {[%emt 0:01:32]} 28. Nc5 {[%emt 0:02:15]} Rf6 {[%emt 0:03:54]} 29. Qg4 {[%emt 0:07:29]} h5 {[%emt 0:02:38]} 30. Qe2 {[%emt 0:01:17]} b6 {[%emt 0:02:32]} 31. Nd3 {[%emt 0:00:14]} Ne4 {[%emt 0:00:14]} 32. Kg2 {[%emt 0:00:33]} Rff8 {[%emt 0:01:04]} 33. Nf2 {[%emt 0:01:20]} Nxf2 {[%emt 0:00:40]} 34. Rxf2 {[%emt 0:00:33]} b5 {[%emt 0:00:28]} 35. Rf3 {[%emt 0:00:32]} Qd7 {[%emt 0:01:36]} 36. Re3 {[%emt 0:00:17]} Kf7 {[%emt 0:00:33]} 37. Bg5 {[%emt 0:01:53]} Bf6 {[%emt 0:00:42]} 38. Bf4 {[%emt 0:03:49]} Re7 {[%emt 0:00:51]} 39. Rf1 {[%emt 0:01:15]} Kg7 {[%emt 0:00:37]} 40. Re1 {[%emt 0:02:26]} Rfe8 {[%emt 0:00:35]} 41. Rf1 {[%emt 0:00:46]} Rf7 {[%emt 0:00:46]} 42. Re1 {[%emt 0:00:16]} Rfe7 {[%emt 0:00:20]} 43. Rf1 {[%emt 0:00:05]} Qb7 {[%emt 0:00:57]} 44. Bd6 {[%emt 0:00:28]} Qc6 {[%emt 0:00:37]} 45. Bxe7 {[%emt 0:00:28]} Rxe7 {[%emt 0:00:02]} 46. Ref3 {[%emt 0:01:08]} Rf7 {[%emt 0:00:53]} 47. Rxf6 {[%emt 0:00:05]} 1-0

[Event "33rd Croatian Junior League 2024"]
[Site "Novalja"]
[Date "2024.04.07"]
[Round "8.4"]
[White "Pehar, Borna"]
[Black "Mesic, Josip"]
[Result "1/2-1/2"]
[ECO "C10"]
[WhiteElo "1988"]
[BlackElo "1745"]
[Annotator "NA RC"]
[PlyCount "57"]
[EventDate "2024.03.28"]
[EventType "team-tourn"]
[EventCountry "CRO"]
[SourceTitle "playchess.com"]
[Source "ChessBase"]
[SourceQuality "1"]
[TimeControl "5400+30"]

1. e4 {[%emt 0:10:44]} e6 {[%emt 0:00:05]} 2. d4 {[%emt 0:00:51]} d5 {[%emt 0:00:04]} 3. Nc3 {[%emt 0:00:05]} Nf6 {[%emt 0:00:20]} 4. Bg5 {[%emt 0:00:06]} dxe4 {[%emt 0:00:18]} 5. Nxe4 {[%emt 0:00:11]} Nbd7 {[%emt 0:00:36]} 6. Nf3 {[%emt 0:02:11]} Be7 {[%emt 0:01:31]} 7. Nxf6+ {[%emt 0:00:34]} Nxf6 {[%emt 0:00:29]} 8. Bd3 {[%emt 0:00:14]} O-O {[%emt 0:01:25]} 9. O-O {[%emt 0:00:12]} b6 {[%emt 0:01:18]} 10. c3 {[%emt 0:03:53]} Bb7 {[%emt 0:00:33]} 11. Re1 {[%emt 0:00:55]} Rc8 {[%emt 0:00:45]} 12. Qe2 {[%emt 0:01:40]} c5 {[%emt 0:02:36]} 13. Rad1 {[%emt 0:02:28]} h6 {[%emt 0:03:48]} 14. Bxf6 {[%emt 0:03:49]} Bxf6 {[%emt 0:00:11]} 15. dxc5 $1 {[%emt 0:00:06]} Rxc5 {[%emt 0:03:44]} (15... Bd5 $11) 16. Bh7+ {[%emt 0:00:32]} Kxh7 {[%emt 0:00:08]} 17. Rxd8 {[%emt 0:00:04]} Rxd8 {[%emt 0:00:19]} 18. h3 {[%emt 0:06:24]} Rcd5 $14 {[%emt 0:00:56]} 19. Qc2+ {[%emt 0:10:39]} Kg8 {[%emt 0:01:33]} 20. Re3 {[%emt 0:10:29]} Rd1+ {[%emt 0:03:40]} 21. Kh2 {[%emt 0:00:14]} Bxf3 {[%emt 0:01:10]} 22. Rxf3 {[%emt 0:00:57]} R1d2 {[%emt 0:00:47]} 23. Qa4 {[%emt 0:07:30]} Rxb2 {[%emt 0:01:18]} 24. Qxa7 {[%emt 0:02:41]} Rdd2 {[%emt 0:01:10]} 25. Qa8+ {[%emt 0:01:41]} Kh7 {[%emt 0:01:16]} 26. Qe4+ {[%emt 0:01:01]} Kg8 {[%emt 0:00:25]} 27. Qa8+ {[%emt 0:03:49]} Kh7 {[%emt 0:01:24]} 28. Qe4+ {[%emt 0:01:14]} Kg8 {[%emt 0:00:14]} 29. Qa8+ {[%emt 0:29:46]} 1/2-1/2

[Event "33rd Croatian Junior League 2024"]
[Site "Novalja"]
[Date "2024.04.07"]
[Round "8.5"]
[White "Vucenovic, Damian"]
[Black "Troselj, Ivan"]
[Result "0-1"]
[ECO "B00"]
[WhiteElo "2145"]
[BlackElo "2072"]
[Annotator "NA RC"]
[PlyCount "86"]
[EventDate "2024.03.28"]
[EventType "team-tourn"]
[EventCountry "CRO"]
[SourceTitle "playchess.com"]
[Source "ChessBase"]
[SourceQuality "1"]
[TimeControl "5400+30"]

1. e4 {[%emt 0:00:13]} b6 {[%emt 0:00:09]} 2. d4 {[%emt 0:00:54]} Bb7 {[%emt 0:00:06]} 3. Bd3 {[%emt 0:00:25]} e6 {[%emt 0:00:36]} 4. Nf3 {[%emt 0:01:01]} c5 {[%emt 0:03:58]} 5. c3 {[%emt 0:00:42]} Nf6 {[%emt 0:01:00]} 6. Nbd2 {[%emt 0:02:47]} Nc6 {[%emt 0:01:54]} 7. O-O {[%emt 0:01:10]} cxd4 {[%emt 0:00:47]} 8. cxd4 {[%emt 0:00:28]} Nb4 {[%emt 0:00:19]} 9. Bb1 {[%emt 0:05:57]} Ba6 {[%emt 0:01:40]} 10. Re1 {[%emt 0:00:47]} Nd3 {[%emt 0:00:06]} 11. Bxd3 {[%emt 0:05:11]} Bxd3 {[%emt 0:01:43]} 12. Qb3 {[%emt 0:00:19]} Ba6 {[%emt 0:00:03]} 13. e5 {[%emt 0:01:19]} ({White should play} 13. Qa4 $14 Bb7 14. d5) 13... Nd5 {[%emt 0:00:46]} 14. Ne4 {[%emt 0:02:05]} h6 {[%emt 0:01:12]} 15. Nfd2 $11 {[%emt 0:26:01]} Qc7 {[%emt 0:03:26]} 16. Qg3 {[%emt 0:03:27]} Qc2 {[%emt 0:04:53]} 17. Nb3 {[%emt 0:05:07]} Bd3 {[%emt 0:03:39]} 18. f3 {[%emt 0:04:05]} a5 {[%emt 0:06:00]} 19. Bd2 {[%emt 0:12:11]} a4 {[%emt 0:03:26]} 20. Nd6+ {[%emt 0:09:46]} Bxd6 {[%emt 0:00:47]} 21. exd6 {[%emt 0:00:28]} Bg6 {[%emt 0:02:19]} 22. Bxh6 {[%emt 0:16:09]} gxh6 {[%emt 0:00:35]} 23. Qe5 {[%emt 0:00:52]} O-O {[%emt 0:00:17]} 24. Nc1 {[%emt 0:00:19]} Qxb2 {[%emt 0:01:12]} 25. Ne2 {[%emt 0:00:06]} Rac8 {[%emt 0:01:08]} 26. h4 {[%emt 0:00:05]} Rc2 {[%emt 0:02:37]} 27. h5 {[%emt 0:00:07]} Bd3 {[%emt 0:01:10]} 28. Rab1 {[%emt 0:00:56]} Qxa2 {[%emt 0:00:21]} 29. Ra1 {[%emt 0:00:46]} Qc4 {[%emt 0:01:31]} 30. Nf4 {[%emt 0:00:14]} f6 {[%emt 0:00:18]} 31. Nxd5 {[%emt 0:00:55]} fxe5 {[%emt 0:00:11]} 32. Ne7+ {[%emt 0:00:08]} Kh7 {[%emt 0:00:20]} 33. Ng6 {[%emt 0:01:20]} Qxd4+ {[%emt 0:00:08]} 34. Kh1 {[%emt 0:00:07]} Bxg6 {[%emt 0:00:06]} 35. hxg6+ {[%emt 0:00:04]} Kxg6 {[%emt 0:00:09]} 36. Re4 {[%emt 0:00:04]} Qxa1+ {[%emt 0:00:09]} 37. Kh2 {[%emt 0:00:04]} Rxf3 {[%emt 0:00:14]} 38. Rg4+ {[%emt 0:00:18]} Kf5 {[%emt 0:00:04]} 39. Rg5+ {[%emt 0:00:09]} Ke4 {[%emt 0:00:06]} 40. Rh5 {[%emt 0:01:27]} Rxg2+ {[%emt 0:00:11]} 41. Kxg2 {[%emt 0:00:05]} Qf1+ {[%emt 0:00:12]} 42. Kh2 {[%emt 0:00:04]} Qe2+ {[%emt 0:00:06]} 43. Kh1 {[%emt 0:00:03]} Rf1# {[%emt 0:00:06]} 0-1

[Event "33rd Croatian Junior League 2024"]
[Site "Novalja"]
[Date "2024.04.07"]
[Round "8.6"]
[White "Damjanovic, Stjepan"]
[Black "Dumancic, Simun"]
[Result "1/2-1/2"]
[ECO "B33"]
[WhiteElo "2150"]
[BlackElo "2027"]
[Annotator "RC"]
[PlyCount "72"]
[EventDate "2024.03.28"]
[EventType "team-tourn"]
[EventCountry "CRO"]
[SourceTitle "playchess.com"]
[Source "ChessBase"]
[SourceQuality "1"]
[TimeControl "5400+30"]

1. e4 {[%emt 0:01:57]} c5 {[%emt 0:00:18]} 2. Nf3 {[%emt 0:00:10]} Nc6 {[%emt 0:00:10]} 3. d4 {[%emt 0:00:13]} cxd4 {[%emt 0:00:07]} 4. Nxd4 {[%emt 0:00:05]} Nf6 {[%emt 0:00:04]} 5. Nc3 {[%emt 0:00:12]} e5 {[%emt 0:00:11]} 6. Ndb5 {[%emt 0:00:51]} d6 {[%emt 0:00:16]} 7. Bg5 {[%emt 0:01:29]} a6 {[%emt 0:00:21]} 8. Na3 {[%emt 0:00:04]} b5 {[%emt 0:00:07]} 9. Nd5 {[%emt 0:07:20]} Be7 {[%emt 0:00:06]} 10. Bxf6 {[%emt 0:00:27]} Bxf6 {[%emt 0:00:04]} 11. c3 {[%emt 0:04:55]} Bg5 {[%emt 0:00:31]} 12. Nc2 {[%emt 0:04:23]} O-O {[%emt 0:00:33]} 13. h4 {[%emt 0:08:38]} Bh6 {[%emt 0:00:07]} 14. g4 {[%emt 0:01:36]} Bf4 {[%emt 0:00:05]} 15. a4 {[%emt 0:02:43]} bxa4 {[%emt 0:08:49]} 16. Rxa4 {[%emt 0:01:57]} a5 {[%emt 0:00:17]} 17. Nce3 {[%emt 0:08:15]} Rb8 {[%emt 0:02:30]} 18. Ra2 {[%emt 0:01:39]} Be6 {[%emt 0:13:42]} 19. Nf5 {[%emt 0:02:11]} Kh8 {[%emt 0:08:32]} 20. Bc4 {[%emt 0:22:46]} g6 {[%emt 0:06:23]} 21. Nfe3 {[%emt 0:00:26]} Qc8 {[%emt 0:01:06]} 22. g5 {[%emt 0:03:45]} Bxe3 {[%emt 0:05:36]} 23. Nxe3 {[%emt 0:00:50]} Ne7 {[%emt 0:02:31]} 24. b3 {[%emt 0:02:45]} Qc5 {[%emt 0:03:02]} 25. Qf3 {[%emt 0:01:53]} Kg8 {[%emt 0:05:33]} 26. Qf6 {[%emt 0:01:53]} d5 {[%emt 0:06:55]} 27. exd5 {[%emt 0:02:09]} Nxd5 {[%emt 0:02:20]} 28. Bxd5 {[%emt 0:18:58]} Bxd5 {[%emt 0:00:21]} 29. Ng4 {[%emt 0:00:00]} Qxc3+ {[%emt 0:03:03]} 30. Rd2 {[%emt 0:00:00]} Rfd8 {[%emt 0:01:31]} 31. Nh6+ {[%emt 0:00:00]} Kf8 {[%emt 0:00:01]} 32. Qh8+ {[%emt 0:00:00]} Ke7 {[%emt 0:00:01]} 33. Qf6+ {[%emt 0:00:00]} Ke8 {[%emt 0:00:46]} 34. Rh3 {[%emt 0:00:00]} Qxh3 {[%emt 0:07:36]} 35. Qh8+ {[%emt 0:00:00]} Ke7 {[%emt 0:05:41]} 36. Qf6+ {[%emt 0:00:00]} Ke8 {[%emt 0:00:10]} 1/2-1/2